bitfinex-derivatives/quotes_BTCF0:USTF0_20260119
["timestamp","ask_amount","ask_price","bid_price","bid_amount"]
[1768820987297,0.04016558,93060.0,93041.0,0.05778375]
[1768820987600,0.02420045,93059.0,93048.0,0.010754]
[1768820987892,0.04000441,93059.0,93043.0,0.010754]
[1768820988095,0.04000441,93059.0,93045.0,0.010754]
[1768820988287,0.04000441,93059.0,93040.0,0.14428188]
[1768820989402,0.00236396,93064.0,93055.0,0.010753]
[1768820989588,0.00236396,93064.0,93059.0,0.010752]
[1768820989589,8e-08,93064.0,93059.0,0.010752]
[1768820992297,8e-08,93064.0,93052.0,0.14428188]
[1768820992499,8e-08,93064.0,93052.0,0.20206563]
[1768820993296,8e-08,93064.0,93062.0,0.010752]
[1768820993497,0.05779986,93077.0,93062.0,0.010752]
[1768820993498,0.03816367,93077.0,93062.0,0.010752]
[1768820997007,0.04891367,93076.0,93062.0,0.010752]
[1768820997411,0.03816367,93075.0,93062.0,0.010752]
[1768820998715,0.03816367,93075.0,93060.0,0.14444305]
[1768820999921,0.03816367,93075.0,93061.0,0.010752]
[1768821001322,0.03816367,93075.0,93063.0,0.010752]
[1768821001815,0.02376527,93074.0,93063.0,0.010752]
[1768821002026,0.1050096,93079.0,93065.0,0.010752]
[1768821002215,0.03816367,93089.0,93071.0,0.05957844]
[1768821002415,0.03816367,93089.0,93074.0,0.010751]
[1768821002621,0.16360493,93092.0,93074.0,0.010751]
[1768821002622,0.14567267,93092.0,93074.0,0.010751]
[1768821003123,0.03816367,93091.0,93074.0,0.010751]
[1768821003315,0.23854148,93090.0,93071.0,0.010751]
[1768821003511,0.03816367,93089.0,93070.0,0.20386032]
[1768821005114,0.03816367,93089.0,93071.0,0.010751]
[1768821005824,0.03816367,93088.0,93071.0,0.010751]
[1768821006818,0.03816367,93088.0,93073.0,0.010751]
[1768821008627,0.03816367,93088.0,93075.0,0.01075]
[1768821009418,0.03816367,93088.0,93078.0,0.01075]
[1768821010119,0.03816367,93088.0,93075.0,0.01075]
[1768821010320,0.03816367,93088.0,93070.0,0.20386032]
[1768821010921,0.03816367,93088.0,93077.0,0.01075]
[1768821014237,0.03816367,93088.0,93070.0,0.20386032]
[1768821014624,0.03816367,93083.0,93069.0,0.010751]
[1768821014830,0.03816367,93082.0,93069.0,0.010751]
[1768821015227,0.03816367,93082.0,93071.0,0.010751]
[1768821016037,0.03816367,93082.0,93068.0,0.010751]
[1768821016946,0.03816367,93082.0,93064.0,0.09676]
[1768821016947,0.03816367,93082.0,93070.0,0.010751]
[1768821017234,0.03816367,93082.0,93066.0,0.010751]
[1768821017635,0.03816367,93081.0,93064.0,0.09676]
[1768821017933,0.03816367,93081.0,93067.0,0.010751]
[1768821018521,0.03816367,93081.0,93064.0,0.09676]
[1768821018522,0.03816367,93081.0,93065.0,0.010752]
[1768821019131,0.05609593,93080.0,93065.0,0.010752]
[1768821019337,0.03816367,93078.0,93065.0,0.010752]
[1768821019731,0.0942596,93078.0,93064.0,0.09676]
[1768821020039,0.03816367,93072.0,93060.0,0.01091317]
[1768821020532,0.03816367,93072.0,93062.0,0.010752]
[1768821021740,0.03816367,93072.0,93060.0,0.14444305]
[1768821021941,0.03816367,93072.0,93060.0,0.00016117]
[1768821024451,0.03816367,93072.0,93061.0,0.010752]
[1768821025233,0.03816367,93072.0,93060.0,0.00016117]
[1768821025438,0.14428188,93080.0,93051.0,0.04198405]
[1768821025439,0.03917811,93065.0,93051.0,0.04198405]
[1768821025638,0.03917811,93065.0,93051.0,0.14949705]
[1768821026235,0.03917811,93068.0,93051.0,0.13874405]
[1768821026437,0.03917811,93066.0,93052.0,0.010753]
[1768821027246,0.03917811,93066.0,93055.0,0.010753]
[1768821027445,0.03917811,93071.0,93055.0,0.010753]
[1768821027648,0.03917811,93070.0,93055.0,0.010753]
[1768821027943,0.03917811,93070.0,93051.0,0.09676]
[1768821027944,0.09811968,93076.0,93061.0,0.010752]
[1768821028147,0.09811968,93076.0,93063.0,0.010752]
[1768821028445,0.03917811,93075.0,93063.0,0.010752]
[1768821028648,0.03917811,93072.0,93060.0,0.15503388]
[1768821032447,0.03801132,93076.0,93062.0,0.010752]
[1768821032838,0.03801132,93076.0,93064.0,0.010752]
[1768821033050,0.00016117,93076.0,93052.0,0.06746883]
[1768821033249,0.00016117,93076.0,93066.0,0.010751]
[1768821034350,0.00016117,93076.0,93063.0,0.010752]
[1768821034947,0.00016117,93076.0,93061.0,0.05671583]
[1768821035146,0.00016117,93076.0,93062.0,0.010752]
[1768821036349,0.00016117,93076.0,93061.0,0.05671583]
[1768821036947,0.03801132,93076.0,93051.0,0.09676]
[1768821037149,0.03801132,93076.0,93061.0,0.010752]
[1768821038843,0.04876132,93076.0,93061.0,0.010752]
[1768821039043,0.010751,93074.0,93058.0,0.010752]
[1768821039644,0.010751,93072.0,93055.0,0.06746883]
[1768821039845,0.010751,93070.0,93055.0,0.06746883]
[1768821042152,0.010751,93070.0,93057.0,0.010753]
[1768821043751,0.03903715,93071.0,93054.0,0.010753]
[1768821043951,0.03903715,93069.0,93051.0,0.107513]
[1768821044656,0.010752,93066.0,93053.0,0.010753]
[1768821045044,0.04978815,93069.0,93053.0,0.010753]
[1768821045249,0.03903715,93069.0,93051.0,0.09676]
[1768821045558,0.03903715,93069.0,93058.0,0.010752]
[1768821046359,0.03903715,93073.0,93054.0,0.05564705]
[1768821046657,0.03903715,93073.0,93059.0,0.010752]
[1768821047459,0.03903715,93073.0,93054.0,0.05564705]
[1768821049049,0.09609223,93071.0,93051.0,0.09676]
[1768821049362,0.03903715,93071.0,93052.0,0.05564705]
[1768821050560,0.04978815,93071.0,93058.0,0.010752]
[1768821051155,0.04978815,93071.0,93055.0,0.010753]
[1768821053357,0.04978815,93071.0,93052.0,0.05564705]
[1768821053358,0.03903715,93071.0,93052.0,0.05564705]
[1768821053753,0.03903715,93071.0,93053.0,0.09676]
[1768821054466,0.03903715,93071.0,93057.0,0.010753]
[1768821054663,0.010751,93070.0,93057.0,0.010753]
[1768821056767,0.03903715,93071.0,93054.0,0.010753]
[1768821056768,0.010751,93068.0,93054.0,0.010753]
[1768821057157,0.03903715,93071.0,93056.0,0.010753]
[1768821058464,0.010751,93069.0,93056.0,0.010753]
[1768821059467,0.010751,93069.0,93054.0,0.09676]
[1768821059668,0.010751,93067.0,93054.0,0.09676]
[1768821065576,0.010751,93067.0,93055.0,0.010753]
[1768821065873,0.010751,93067.0,93054.0,0.09676]
[1768821069773,0.00016117,93076.0,93049.0,0.00236436]
[1768821069774,0.09227197,93069.0,93049.0,0.00236436]
[1768821069969,0.010753,93057.0,93049.0,0.00236436]
[1768821070169,0.04591475,93060.0,93044.0,0.00236447]
[1768821070872,0.010752,93060.0,93044.0,0.00236447]
[1768821072075,0.010752,93062.0,93048.0,0.010754]
[1768821073078,0.04591475,93062.0,93048.0,0.010754]
[1768821073272,0.04591475,93062.0,93045.0,0.010754]
[1768821073671,0.010753,93053.0,93044.0,0.00236447]
[1768821074076,0.010753,93056.0,93044.0,0.00236447]
[1768821077780,0.03516275,93059.0,93044.0,0.00236447]
[1768821078981,0.010753,93055.0,93044.0,0.00236447]
[1768821082481,0.03516275,93058.0,93044.0,0.00236447]
[1768821082683,0.03516275,93058.0,93044.0,0.01311847]
[1768821083587,0.04591475,93058.0,93044.0,0.01311847]
[1768821084386,0.04591475,93058.0,93044.0,0.00236447]
[1768821085387,0.03459078,93054.0,93044.0,0.00236447]
[1768821086389,0.03459078,93054.0,93044.0,0.01311847]
[1768821086689,0.04534278,93058.0,93044.0,0.01311847]
[1768821089696,0.03459078,93058.0,93045.0,0.010754]
[1768821096894,0.03459078,93058.0,93044.0,0.00236447]
[1768821097402,0.09227783,93057.0,93044.0,0.00236447]
[1768821097600,0.03459078,93056.0,93044.0,0.00236447]
[1768821097801,0.04534378,93056.0,93044.0,0.00236447]
[1768821098001,0.03459078,93053.0,93044.0,0.00236447]
[1768821098201,0.04534378,93052.0,93039.0,0.09676]
[1768821098603,0.010753,93050.0,93039.0,0.09676]
[1768821099096,0.0884902,93049.0,93039.0,0.06252251]
[1768821099299,0.03118724,93048.0,93039.0,0.02828502]
[1768821100205,0.05730296,93049.0,93039.0,0.02828502]
[1768821103909,0.05730296,93049.0,93040.0,0.010755]
[1768821104107,0.0884902,93049.0,93039.0,0.02828502]
[1768821107314,0.03118724,93048.0,93039.0,0.02828502]
[1768821108012,0.03118724,93046.0,93039.0,0.02828502]
[1768821108216,0.0884902,93035.0,93024.0,0.07976378]
[1768821108417,0.0884902,93031.0,93022.0,0.09676]
[1768821108711,0.09676,93049.0,93011.0,0.09652985]
[1768821108712,0.0884902,93029.0,93019.0,0.01169342]
[1768821108905,0.0884902,93029.0,93017.0,0.010757]
[1768821109100,0.0884902,93029.0,93016.0,0.09676]
[1768821109311,0.0884902,93029.0,93018.0,0.010757]
[1768821109707,0.03134841,93033.0,93016.0,0.10826723]
[1768821110017,0.00016117,93033.0,93019.0,0.14429477]
[1768821111413,0.00016117,93033.0,93023.0,0.010756]
[1768821113904,0.00016117,93033.0,93019.0,0.14429477]
[1768821113905,0.00016117,93033.0,93020.0,0.010757]
[1768821114109,0.00016117,93033.0,93019.0,0.14429477]
[1768821114313,0.01091617,93033.0,93019.0,0.14429477]
[1768821114709,0.01091617,93033.0,93017.0,0.010757]
[1768821116115,0.01091617,93033.0,93020.0,0.14429477]
[1768821116311,0.01091617,93033.0,93017.0,0.010757]
[1768821116515,0.01091617,93033.0,93020.0,0.14429477]
[1768821116716,0.00016117,93033.0,93020.0,0.13636077]
[1768821117106,0.00016117,93033.0,93020.0,0.14429477]
[1768821117824,0.01091617,93033.0,93020.0,0.14429477]
[1768821118119,0.04630074,93033.0,93020.0,0.14429477]
[1768821118418,0.03554574,93033.0,93018.0,0.010757]
[1768821119120,0.03554574,93033.0,93020.0,0.14429477]
[1768821119312,0.03554574,93033.0,93018.0,0.010757]
[1768821119512,0.00016117,93033.0,93020.0,0.14429477]
[1768821119718,0.00016117,93033.0,93021.0,0.010757]
[1768821120117,0.00016117,93033.0,93020.0,0.14429477]
[1768821120118,0.01091617,93033.0,93020.0,0.14429477]
[1768821120515,0.03538457,93027.0,93016.0,0.01150723]
[1768821120721,0.03538457,93027.0,93013.0,0.010758]
[1768821121418,0.03538457,93027.0,93013.0,0.02222944]
[1768821121615,0.03538457,93031.0,93013.0,0.01147144]
[1768821121818,0.03538457,93031.0,93012.0,0.03463646]
[1768821122014,0.03538457,93031.0,93012.0,0.09307995]
[1768821122523,0.03538457,93031.0,93012.0,0.10422461]
[1768821123516,0.010756,93032.0,93017.0,0.010757]
[1768821123713,0.04614057,93032.0,93017.0,0.010757]
[1768821124526,1.7e-07,93033.0,93022.0,0.09307995]
[1768821124826,0.0968,93042.0,93024.0,0.09307995]
[1768821125027,0.0968,93042.0,93028.0,0.14429477]
[1768821125228,0.0968,93042.0,93024.0,0.09307995]
[1768821125422,0.0968,93042.0,93027.0,0.010756]
[1768821126923,0.010754,93046.0,93029.0,0.010756]
[1768821127224,0.10991847,93044.0,93029.0,0.010756]
[1768821127432,0.09122747,93044.0,93029.0,0.010756]
[1768821128029,0.12661204,93044.0,93029.0,0.010756]
[1768821129632,0.11585804,93044.0,93029.0,0.010756]
[1768821130522,0.010754,93043.0,93026.0,0.04539246]
[1768821130834,0.010755,93040.0,93025.0,0.05844349]
[1768821131032,0.010755,93040.0,93023.0,0.010756]
[1768821132325,0.03538457,93038.0,93020.0,0.20273826]
[1768821132634,0.010755,93035.0,93020.0,0.21349526]
[1768821134537,0.010755,93035.0,93020.0,0.010757]
[1768821135233,0.010755,93035.0,93020.0,0.15505177]
[1768821135536,0.010755,93035.0,93020.0,0.14429477]
[1768821135727,0.03538457,93034.0,93020.0,0.14429477]
[1768821136037,0.03538457,93034.0,93021.0,0.010757]
[1768821136534,0.03538457,93034.0,93024.0,0.00236498]
[1768821138421,0.010755,93038.0,93024.0,0.00236498]
[1768821138629,0.04613957,93038.0,93024.0,0.00236498]
[1768821142939,0.010755,93036.0,93024.0,0.00236498]
[1768821144544,0.0467617,93036.0,93024.0,0.00236498]
[1768821145437,0.010755,93033.0,93024.0,0.00236498]
[1768821150042,0.010756,93031.0,93024.0,0.00236498]
[1768821154244,0.010755,93032.0,93024.0,0.00236498]
[1768821158050,0.010756,93030.0,93024.0,0.00236498]
[1768821161050,0.010755,93033.0,93024.0,0.00236498]
[1768821163251,0.0467617,93036.0,93024.0,0.00236498]
[1768821163552,0.010755,93034.0,93024.0,0.00236498]
[1768821165152,0.0360067,93036.0,93024.0,0.00236498]
[1768821165753,0.010755,93033.0,93024.0,0.00236498]
[1768821166755,0.03398218,93035.0,93024.0,0.00236498]
[1768821166950,0.010756,93032.0,93024.0,0.00236498]
[1768821169060,0.010756,93030.0,93024.0,0.00236498]
[1768821169247,0.010756,93027.0,93018.0,0.0968]
[1768821170357,0.03398218,93035.0,93018.0,0.0968]
[1768821171156,0.010756,93029.0,93018.0,0.0968]
[1768821172759,0.010756,93026.0,93015.0,0.09238333]
[1768821172962,0.03236893,93034.0,93015.0,0.18918333]
[1768821173163,0.03236893,93033.0,93015.0,0.0968]
[1768821173369,0.03236893,93028.0,93016.0,0.0968]
[1768821174055,0.03236893,93027.0,93014.0,0.0968]
[1768821174363,0.03236893,93031.0,93014.0,0.0968]
[1768821175361,0.010756,93024.0,93014.0,0.0968]
[1768821176361,0.010756,93027.0,93014.0,0.0968]
[1768821178461,0.03236893,93052.0,93020.0,0.09624369]
[1768821178663,0.06020965,93064.0,93026.0,0.06342234]
[1768821178664,0.010755,93040.0,93026.0,0.06342234]
[1768821179066,0.010755,93035.0,93019.0,0.06342234]
[1768821180779,0.010755,93035.0,93019.0,0.09624369]
[1768821180982,0.03236893,93040.0,93019.0,0.09624369]
[1768821181183,0.05640707,93039.0,93019.0,0.09624369]
[1768821181377,0.03236893,93039.0,93019.0,0.09624369]
[1768821181782,0.09402256,93037.0,93018.0,0.00016126]
[1768821182084,0.010756,93030.0,93018.0,0.00016126]
[1768821184980,0.03236893,93034.0,93018.0,0.00016126]
[1768821185182,0.010756,93032.0,93018.0,0.00016126]
[1768821190289,0.03236893,93034.0,93018.0,0.01091826]
[1768821190593,0.010755,93033.0,93018.0,0.01091826]
[1768821197398,0.010756,93031.0,93018.0,0.00016126]
[1768821199590,0.09402256,93031.0,93018.0,0.00016126]
[1768821199795,0.010755,93039.0,93018.0,0.00016126]
[1768821199796,0.03236893,93029.0,93018.0,0.00016126]
[1768821200291,0.07718031,93062.0,93018.0,0.00016126]
[1768821200292,0.03236893,93040.0,93021.0,0.06342234]
[1768821200794,0.03236893,93036.0,93019.0,0.010757]
[1768821201000,0.03236893,93036.0,93021.0,0.010757]
[1768821202104,0.03236893,93036.0,93018.0,0.00016126]
[1768821203399,0.03236893,93036.0,93020.0,0.010757]
[1768821204302,0.03236893,93036.0,93023.0,0.010756]
[1768821205195,0.03236893,93036.0,93020.0,0.010757]
[1768821205401,0.03150148,93035.0,93019.0,0.010757]
[1768821205601,0.03150148,93034.0,93019.0,0.010757]
[1768821207198,0.03150148,93034.0,93018.0,0.00016126]
[1768821208402,0.03150148,93034.0,93024.0,0.010756]
[1768821209402,0.03150148,93039.0,93024.0,0.010756]
[1768821210400,0.03150148,93039.0,93018.0,0.0294848]
[1768821210401,0.03150148,93039.0,93026.0,0.010756]
[1768821210592,0.03150148,93039.0,93030.0,0.010756]
[1768821210797,0.010753,93058.0,93030.0,0.010756]
[1768821210798,0.03150148,93047.0,93030.0,0.010756]
[1768821210996,0.02407384,93043.0,93030.0,0.010756]
[1768821211200,0.02407384,93042.0,93030.0,0.010756]
[1768821211401,0.02407384,93041.0,93030.0,0.010756]
[1768821211705,0.010754,93045.0,93030.0,0.010756]
[1768821211912,0.02407605,93043.0,93030.0,0.010756]
[1768821212102,0.02407605,93042.0,93030.0,0.010756]
[1768821212293,0.02407605,93041.0,93030.0,0.010756]
[1768821212498,0.010754,93045.0,93030.0,0.010756]
[1768821212702,0.02407473,93043.0,93032.0,0.02932354]
[1768821212893,0.010753,93050.0,93034.0,0.010755]
[1768821213092,0.02407533,93049.0,93034.0,0.010755]
[1768821213398,0.02407533,93048.0,93034.0,0.010755]
[1768821213600,0.02407533,93047.0,93034.0,0.010755]
[1768821213799,0.010753,93050.0,93034.0,0.010755]
[1768821213998,0.02396787,93049.0,93036.0,0.010755]
[1768821214200,0.02396787,93048.0,93036.0,0.010755]
[1768821214509,0.02396787,93047.0,93036.0,0.010755]
[1768821214712,0.03150148,93052.0,93036.0,0.010755]
[1768821214911,0.03150148,93049.0,93034.0,0.010755]
[1768821215113,0.0239643,93048.0,93034.0,0.010755]
[1768821215405,0.0239643,93047.0,93034.0,0.010755]
[1768821215598,0.03150148,93049.0,93034.0,0.010755]
[1768821215800,0.02396171,93048.0,93034.0,0.010755]
[1768821216112,0.02396171,93047.0,93036.0,0.010755]
[1768821216309,0.03150148,93049.0,93036.0,0.010755]
[1768821216513,0.02395963,93048.0,93036.0,0.010755]
[1768821216816,0.02395963,93048.0,93031.0,0.06227619]
[1768821216817,0.02395963,93047.0,93035.0,0.010755]
[1768821217003,0.03150148,93049.0,93035.0,0.010755]
[1768821217204,0.02395963,93048.0,93031.0,0.06227619]
[1768821217506,0.03150148,93049.0,93037.0,0.010755]
[1768821217708,0.0239578,93048.0,93037.0,0.010755]
[1768821217906,0.03150148,93049.0,93037.0,0.010755]
[1768821219412,0.03150148,93049.0,93039.0,0.010755]
[1768821220509,0.03150148,93049.0,93031.0,0.06227619]
[1768821220715,0.03150148,93049.0,93035.0,0.010755]
[1768821221416,0.04225548,93049.0,93032.0,0.010755]
[1768821221817,0.0955259,93049.0,93031.0,0.010756]
[1768821222018,0.010754,93046.0,93030.0,0.1443098]
[1768821222217,0.02746862,93045.0,93030.0,0.1550658]
[1768821222920,0.02746862,93045.0,93032.0,0.010755]
[1768821226425,0.02746862,93045.0,93034.0,0.010755]
[1768821228328,0.02746862,93045.0,93031.0,0.010756]
[1768821228626,0.02746862,93045.0,93033.0,0.010755]
[1768821229629,0.02746862,93045.0,93029.0,0.0968]
[1768821229928,0.02746862,93045.0,93030.0,0.1443098]
[1768821230122,0.02746862,93045.0,93029.0,0.0968]
[1768821230329,0.010755,93040.0,93030.0,0.1443098]
[1768821231633,0.010755,93040.0,93029.0,0.0968]
[1768821231820,0.03822262,93043.0,93030.0,0.1443098]
[1768821232020,0.03822262,93043.0,93031.0,0.0968]
[1768821232229,0.010754,93041.0,93031.0,0.0968]
[1768821235547,0.010754,93044.0,93031.0,0.0968]
[1768821236146,0.02691652,93047.0,93031.0,0.0968]
[1768821236353,0.02691652,93046.0,93031.0,0.0968]
[1768821236740,0.010755,93040.0,93031.0,0.0968]
[1768821237837,0.010755,93038.0,93031.0,0.0968]
[1768821238550,0.010755,93041.0,93031.0,0.0968]
[1768821240253,0.010754,93042.0,93031.0,0.0968]
[1768821240452,0.010755,93040.0,93031.0,0.0968]
[1768821241352,0.02691652,93043.0,93031.0,0.0968]
[1768821243257,0.010755,93037.0,93031.0,0.0968]
[1768821244860,0.010755,93040.0,93031.0,0.0968]
[1768821246449,0.010754,93043.0,93031.0,0.0968]
[1768821249355,0.02691652,93047.0,93032.0,0.010755]
[1768821249660,0.010754,93043.0,93031.0,0.0968]
[1768821250468,0.010754,93043.0,93031.0,0.107556]
[1768821250669,0.010754,93046.0,93033.0,0.010755]
[1768821250965,0.010754,93047.0,93031.0,0.12320199]
[1768821251149,0.010754,93047.0,93031.0,0.13395699]
[1768821251561,0.010754,93047.0,93031.0,0.19765902]
[1768821252164,0.02691652,93051.0,93031.0,0.18690402]
[1768821252354,0.010754,93042.0,93031.0,0.18690402]
[1768821253280,0.03766952,93051.0,93031.0,0.18690402]
[1768821253562,0.02691652,93049.0,93031.0,0.18690402]
[1768821253757,0.02372353,93048.0,93031.0,0.18690402]
[1768821253965,0.02372353,93047.0,93031.0,0.18690402]
[1768821254170,0.02691652,93049.0,93031.0,0.18690402]
[1768821254364,0.02372358,93048.0,93031.0,0.18690402]
[1768821254566,0.02372358,93047.0,93031.0,0.18690402]
[1768821254766,0.02691652,93049.0,93031.0,0.18690402]
[1768821254966,0.010755,93040.0,93031.0,0.06370203]
[1768821255359,0.03767052,93049.0,93031.0,0.06370203]
[1768821255560,0.010755,93038.0,93031.0,0.06370203]
[1768821256168,0.010754,93048.0,93031.0,0.06370203]
[1768821256363,0.02372463,93047.0,93028.0,0.1443098]
[1768821256671,0.02372463,93046.0,93028.0,0.1443098]
[1768821257264,0.02372463,93046.0,93028.0,0.17071179]
[1768821257468,0.010755,93038.0,93028.0,0.17071179]
[1768821257772,0.010755,93038.0,93028.0,0.23441382]
[1768821258268,0.010755,93038.0,93028.0,0.09010402]
[1768821258469,0.010755,93038.0,93028.0,0.23441382]
[1768821259665,0.010755,93038.0,93029.0,0.02640199]
[1768821260371,0.010754,93041.0,93029.0,0.02640199]
[1768821260572,0.010754,93041.0,93030.0,0.02640199]
[1768821261070,0.010754,93041.0,93031.0,0.02640199]
[1768821261865,0.17122632,93050.0,93031.0,0.02640199]
[1768821262172,0.0237284,93049.0,93031.0,0.02640199]
[1768821262372,0.0237284,93048.0,93031.0,0.02640199]
[1768821262575,0.0237284,93047.0,93031.0,0.09010402]
[1768821262870,0.0237284,93046.0,93031.0,0.09010402]
[1768821263073,0.02691652,93050.0,93031.0,0.09010402]
[1768821263372,0.02372897,93049.0,93031.0,0.09010402]
[1768821263571,0.02372897,93048.0,93031.0,0.09010402]
[1768821263771,0.02372897,93047.0,93032.0,0.02469236]
[1768821264071,0.02372897,93046.0,93032.0,0.02469236]
[1768821264276,0.17122632,93050.0,93032.0,0.02469236]
[1768821264571,0.010754,93045.0,93032.0,0.02469236]
[1768821265873,0.17122632,93050.0,93032.0,0.02469236]
[1768821265874,0.010754,93042.0,93032.0,0.02469236]
[1768821266575,0.17122632,93050.0,93032.0,0.02469236]
[1768821266760,0.02373005,93049.0,93032.0,0.02469236]
[1768821266964,0.010754,93046.0,93032.0,0.02469236]
[1768821267471,0.010754,93046.0,93033.0,0.08810985]
[1768821267774,0.010754,93044.0,93033.0,0.08810985]
[1768821274379,0.17040799,93050.0,93033.0,0.06341749]
[1768821274676,0.02358862,93049.0,93033.0,0.06341749]
[1768821274976,0.02358862,93048.0,93033.0,0.06341749]
[1768821275178,0.02358862,93047.0,93033.0,0.06341749]
[1768821275379,0.010755,93041.0,93033.0,0.06341749]
[1768821279086,0.010754,93044.0,93033.0,0.06341749]
[1768821279282,0.010754,93042.0,93033.0,0.06341749]
[1768821280880,0.0968,93051.0,93034.0,0.02409474]
[1768821281090,0.02359062,93050.0,93036.0,0.08573015]
[1768821281277,0.02359062,93049.0,93037.0,0.02409474]
[1768821281477,0.02359062,93048.0,93036.0,0.06163541]
[1768821281678,0.02359062,93047.0,93036.0,0.06163541]
[1768821281876,0.02359083,93046.0,93036.0,0.06163541]
[1768821282076,0.0968,93051.0,93036.0,0.06163541]
[1768821282277,0.010754,93047.0,93036.0,0.06163541]
[1768821282477,0.0235911,93046.0,93036.0,0.06163541]
[1768821282684,0.0968,93051.0,93036.0,0.06163541]
[1768821282979,0.0235911,93050.0,93036.0,0.06163541]
[1768821283183,0.0235911,93049.0,93036.0,0.06163541]
[1768821283483,0.0235911,93048.0,93036.0,0.06163541]
[1768821283685,0.0235911,93047.0,93036.0,0.06163541]
[1768821283885,0.0235911,93046.0,93036.0,0.06163541]
[1768821284185,0.0968,93051.0,93036.0,0.06163541]
[1768821284385,0.010754,93046.0,93036.0,0.06163541]
[1768821288392,0.0968,93051.0,93036.0,0.06163541]
[1768821288594,0.023591,93050.0,93036.0,0.06163541]
[1768821288891,0.023591,93049.0,93036.0,0.06163541]
[1768821289086,0.023591,93048.0,93036.0,0.06163541]
[1768821289289,0.023591,93047.0,93036.0,0.06163541]
[1768821289591,0.023591,93046.0,93036.0,0.06163541]
[1768821289789,0.010754,93048.0,93036.0,0.06163541]
[1768821289989,0.02359099,93047.0,93036.0,0.06163541]
[1768821290185,0.02359099,93046.0,93036.0,0.06163541]
[1768821290384,0.010754,93048.0,93036.0,0.06163541]
[1768821290586,0.02359097,93047.0,93036.0,0.06163541]
[1768821290799,0.02359097,93046.0,93036.0,0.06163541]
[1768821291001,0.010754,93048.0,93036.0,0.06163541]
[1768821291200,0.010754,93046.0,93036.0,0.06163541]
[1768821292912,0.010754,93049.0,93036.0,0.06163541]
[1768821293115,0.02359025,93048.0,93036.0,0.06163541]
[1768821293412,0.02359025,93047.0,93036.0,0.06163541]
[1768821293710,0.02359025,93046.0,93036.0,0.06163541]
[1768821293908,0.010754,93049.0,93036.0,0.06163541]
[1768821294112,0.02359014,93048.0,93036.0,0.06163541]
[1768821294313,0.02359014,93047.0,93036.0,0.08633925]
[1768821294516,0.02359014,93046.0,93036.0,0.08633925]
[1768821294709,0.010754,93049.0,93036.0,0.08633925]
[1768821294910,0.02359012,93048.0,93036.0,0.08633925]
[1768821295112,0.02359012,93047.0,93036.0,0.08633925]
[1768821295408,0.02359012,93046.0,93036.0,0.08633925]
[1768821295608,0.010754,93049.0,93036.0,0.08633925]
[1768821295609,0.010754,93047.0,93036.0,0.08633925]
[1768821295804,0.02359086,93046.0,93036.0,0.08633925]
[1768821296005,0.010754,93047.0,93036.0,0.08633925]
[1768821296315,0.02359086,93046.0,93036.0,0.08633925]
[1768821296516,0.010754,93047.0,93036.0,0.08633925]
[1768821296713,0.02359086,93046.0,93036.0,0.08633925]
[1768821296914,0.010754,93047.0,93036.0,0.08633925]
[1768821297115,0.010754,93045.0,93036.0,0.08633925]
[1768821297315,0.010754,93045.0,93036.0,0.06163541]
[1768821299711,0.010754,93045.0,93033.0,0.02470384]
[1768821300015,0.010754,93043.0,93033.0,0.02470384]
[1768821300413,0.010754,93046.0,93033.0,0.02470384]
[1768821300813,0.010754,93046.0,93034.0,0.02470384]
[1768821301513,0.0968,93061.0,93050.0,0.02470384]
[1768821301816,0.02744303,93069.0,93029.0,0.010756]
[1768821301817,0.00236385,93069.0,93054.0,0.06217525]
[1768821302317,0.01311485,93069.0,93054.0,0.06217525]
[1768821303105,0.01311485,93069.0,93052.0,0.010753]
[1768821303106,0.00236385,93069.0,93056.0,0.06217525]
[1768821303507,0.01075,93076.0,93056.0,0.06217525]
[1768821303716,0.01075,93076.0,93059.0,0.02470384]
[1768821303909,0.01075,93076.0,93062.0,0.06217525]
[1768821305218,0.01075,93076.0,93062.0,0.08687909]
[1768821306121,0.0968,93079.0,93063.0,0.06217525]
[1768821306317,0.01075,93078.0,93063.0,0.06217525]
[1768821306723,0.0968,93079.0,93067.0,0.08687909]
[1768821307018,0.02507918,93087.0,93057.0,0.0968]
[1768821307019,0.0968,93086.0,93070.0,0.08687909]
[1768821308521,0.0968,93086.0,93071.0,0.08687909]
[1768821308923,0.107549,93086.0,93073.0,0.06217525]
[1768821309325,0.01075,93083.0,93073.0,0.06217525]
[1768821309823,0.0968,93086.0,93073.0,0.06217525]
[1768821309824,0.107549,93086.0,93073.0,0.06217525]
[1768821310325,0.01075,93084.0,93073.0,0.06217525]
[1768821311525,0.010749,93085.0,93073.0,0.06217525]
[1768821312323,0.010749,93085.0,93073.0,0.08687909]
[1768821315529,0.0968,93086.0,93073.0,0.08687909]
[1768821315731,0.0968,93086.0,93073.0,0.06217525]
[1768821315921,0.02507918,93100.0,93080.0,0.08687909]
[1768821316116,0.02507918,93098.0,93080.0,0.06217525]
[1768821316321,0.010748,93098.0,93083.0,0.06217525]
[1768821317029,0.02507918,93102.0,93083.0,0.06217525]
[1768821317232,0.09912295,93104.0,93085.0,0.09762809]
[1768821317432,0.02328629,93103.0,93085.0,0.09762809]
[1768821317634,0.09912295,93104.0,93085.0,0.09762809]
[1768821317819,0.02328624,93103.0,93085.0,0.09762809]
[1768821318023,0.09912295,93104.0,93085.0,0.09762809]
[1768821318225,0.12420213,93104.0,93085.0,0.09762809]
[1768821318423,0.010747,93103.0,93085.0,0.09762809]
[1768821319235,0.010748,93100.0,93085.0,0.08687909]
[1768821319424,0.010747,93103.0,93085.0,0.08704026]
[1768821322130,0.12420213,93104.0,93086.0,0.010749]
[1768821322540,0.12420213,93104.0,93088.0,0.010749]
[1768821323336,0.010748,93101.0,93085.0,0.06233642]
[1768821323539,0.03530479,93101.0,93085.0,0.06233642]
[1768821324329,0.010748,93101.0,93085.0,0.06233642]
[1768821324529,0.12367974,93104.0,93085.0,0.07308542]
[1768821324734,0.010747,93103.0,93085.0,0.06233642]
[1768821325230,0.010748,93101.0,93085.0,0.06233642]
[1768821325533,0.010748,93096.0,93080.0,0.09676]
[1768821325734,0.010748,93096.0,93080.0,0.10751]
[1768821326041,0.010748,93099.0,93080.0,0.18982033]
[1768821326241,0.010748,93099.0,93081.0,0.08231033]
[1768821326641,0.010748,93099.0,93082.0,0.05851622]
[1768821326843,0.010748,93099.0,93082.0,0.08231033]
[1768821328342,0.02455679,93100.0,93082.0,0.08231033]
[1768821328547,0.010748,93096.0,93082.0,0.08231033]
[1768821328741,0.010748,93096.0,93082.0,0.05851622]